[Event "Titled Tuesday Blitz March 29 Late 2022"]
[White "Tiarks, Jann-Christian"]
[Black "Ilyasli, Ughur"]
[WhiteFideId "12951595"]
[BlackFideId "13416197"]
[WhiteElo "2176"]
[BlackElo "2045"]
[Result "1-0"]
[Round "08"]
[TimeControl "180+1"]
[Date "2022.03.30"]
[WhiteClock "0:00:53"]
[BlackClock "0:00:09"]

1. e4 {[%clk 0:03:00]}  c5 {[%clk 0:03:00]} 2. c3 {[%clk 0:02:59]}  Nf6 {[%clk 0:02:58]} 3. e5 {[%clk 0:02:59]}  Nd5 {[%clk 0:02:59]} 4. d4 {[%clk 0:02:59]}  cxd4 {[%clk 0:03:00]} 5. Nf3 {[%clk 0:02:58]}  Nc6 {[%clk 0:03:00]} 6. cxd4 {[%clk 0:02:56]}  d6 {[%clk 0:03:00]} 7. Bb5 {[%clk 0:02:53]}  dxe5 {[%clk 0:02:18]} 8. Nxe5 {[%clk 0:02:46]}  Bd7 {[%clk 0:02:17]} 9. Nxd7 {[%clk 0:02:45]}  Qxd7 {[%clk 0:02:17]} 10. O-O {[%clk 0:02:43]}  e6 {[%clk 0:02:16]} 11. Nc3 {[%clk 0:02:44]}  Be7 {[%clk 0:02:08]} 12. Be3 {[%clk 0:02:36]}  O-O {[%clk 0:02:02]} 13. Rc1 {[%clk 0:02:36]}  Nxe3 {[%clk 0:02:00]} 14. fxe3 {[%clk 0:02:35]}  Rad8 {[%clk 0:01:56]} 15. Ne4 {[%clk 0:02:32]}  Qd5 {[%clk 0:01:53]} 16. Bxc6 {[%clk 0:02:31]}  bxc6 {[%clk 0:01:52]} 17. Nc3 {[%clk 0:02:10]}  Qg5 {[%clk 0:01:51]} 18. Qf3 {[%clk 0:02:08]}  Rc8 {[%clk 0:01:24]} 19. Ne4 {[%clk 0:02:06]}  Qd5 {[%clk 0:01:23]} 20. Nc3 {[%clk 0:01:53]}  Qxf3 {[%clk 0:01:18]} 21. gxf3 {[%clk 0:01:50]}  c5 {[%clk 0:01:19]} 22. d5 {[%clk 0:01:49]}  exd5 {[%clk 0:01:09]} 23. Nxd5 {[%clk 0:01:49]}  Bd6 {[%clk 0:01:06]} 24. f4 {[%clk 0:01:44]}  Rfd8 {[%clk 0:01:02]} 25. Rfd1 {[%clk 0:01:44]}  f6 {[%clk 0:00:56]} 26. Kf2 {[%clk 0:01:43]}  Kf7 {[%clk 0:00:56]} 27. Kf3 {[%clk 0:01:44]}  Bf8 {[%clk 0:00:52]} 28. e4 {[%clk 0:01:43]}  h5 {[%clk 0:00:43]} 29. Rc4 {[%clk 0:01:40]}  g5 {[%clk 0:00:42]} 30. fxg5 {[%clk 0:01:39]}  fxg5 {[%clk 0:00:43]} 31. Ra4 {[%clk 0:01:37]}  Rd7 {[%clk 0:00:41]} 32. Ke3 {[%clk 0:01:36]}  g4 {[%clk 0:00:37]} 33. Rf1+ {[%clk 0:01:36]}  Kg6 {[%clk 0:00:27]} 34. Ra6+ {[%clk 0:01:34]}  Kg5 {[%clk 0:00:22]} 35. Rf5+ {[%clk 0:01:17]}  Kh4 {[%clk 0:00:20]} 36. Nf6 {[%clk 0:01:17]}  Bh6+ {[%clk 0:00:13]} 37. Ke2 {[%clk 0:01:12]}  Rd2+ {[%clk 0:00:14]} 38. Ke1 {[%clk 0:01:12]}  Bg5 {[%clk 0:00:13]} 39. Rxg5 {[%clk 0:01:08]}  Kxg5 {[%clk 0:00:12]} 40. Kxd2 {[%clk 0:01:09]}  h4 {[%clk 0:00:11]} 41. e5 {[%clk 0:01:04]}  g3 {[%clk 0:00:10]} 42. hxg3 {[%clk 0:01:04]}  hxg3 {[%clk 0:00:11]} 43. Ra3 {[%clk 0:01:03]}  Kf4 {[%clk 0:00:09]} 44. Nh5+ {[%clk 0:01:02]}  Kxe5 {[%clk 0:00:09]} 45. Nxg3 {[%clk 0:01:02]}  c4 {[%clk 0:00:08]} 46. Rxa7 {[%clk 0:01:01]}  Rb8 {[%clk 0:00:07]} 47. Kc3 {[%clk 0:01:01]}  Rg8 {[%clk 0:00:08]} 48. Ne2 {[%clk 0:01:00]}  Rg2 {[%clk 0:00:09]} 49. Re7+ {[%clk 0:00:55]}  Kd5 {[%clk 0:00:08]} 50. Nf4+ {[%clk 0:00:54]}  Kd6 {[%clk 0:00:09]} 51. Nxg2 {[%clk 0:00:52]}  Kxe7 {[%clk 0:00:09]} 52. Kxc4 {[%clk 0:00:53]}  Ke6 {[%clk 0:00:09]} 53. Kb5 {[%clk 0:00:53]} 1-0


[Site "https://www.chess.com"]

[Event "Titled Tuesday Blitz March 29 Late 2022"]
[White "Van Foreest, Jorden"]
[Black "Rasulov, Vugar"]
[WhiteFideId "1039784"]
[BlackFideId "13402390"]
[WhiteElo "2609"]
[BlackElo "2560"]
[Result "0-1"]
[Round "08"]
[TimeControl "180+1"]
[Date "2022.03.29"]
[WhiteClock "0:00:03"]
[BlackClock "0:00:38"]

1. d4 {[%clk 0:03:00]}  Nf6 {[%clk 0:02:59]} 2. Nc3 {[%clk 0:03:01]}  d5 {[%clk 0:02:59]} 3. Bf4 {[%clk 0:03:02]}  c5 {[%clk 0:03:00]} 4. e3 {[%clk 0:03:00]}  cxd4 {[%clk 0:03:00]} 5. exd4 {[%clk 0:03:00]}  a6 {[%clk 0:03:00]} 6. Nf3 {[%clk 0:02:58]}  Nc6 {[%clk 0:03:00]} 7. Ne5 {[%clk 0:02:59]}  g6 {[%clk 0:02:57]} 8. Be2 {[%clk 0:02:47]}  Bg7 {[%clk 0:02:57]} 9. O-O {[%clk 0:02:48]}  O-O {[%clk 0:02:57]} 10. Nxc6 {[%clk 0:02:38]}  bxc6 {[%clk 0:02:58]} 11. Be5 {[%clk 0:02:38]}  Bh6 {[%clk 0:02:53]} 12. Na4 {[%clk 0:02:37]}  Nd7 {[%clk 0:02:47]} 13. Bg3 {[%clk 0:02:37]}  a5 {[%clk 0:02:46]} 14. c4 {[%clk 0:02:34]}  Bg7 {[%clk 0:02:33]} 15. cxd5 {[%clk 0:02:31]}  cxd5 {[%clk 0:02:34]} 16. Rc1 {[%clk 0:02:31]}  Ba6 {[%clk 0:02:25]} 17. Bc7 {[%clk 0:02:14]}  Bxe2 {[%clk 0:02:18]} 18. Qxe2 {[%clk 0:02:14]}  Qe8 {[%clk 0:02:18]} 19. Rfd1 {[%clk 0:02:11]}  Rc8 {[%clk 0:02:03]} 20. Qa6 {[%clk 0:01:52]}  Nb8 {[%clk 0:01:55]} 21. Bxb8 {[%clk 0:01:31]}  Rxc1 {[%clk 0:01:55]} 22. Rxc1 {[%clk 0:01:31]}  Qxa4 {[%clk 0:01:56]} 23. Ba7 {[%clk 0:01:21]}  Bxd4 {[%clk 0:01:45]} 24. Bxd4 {[%clk 0:01:08]}  Qxd4 {[%clk 0:01:46]} 25. Qxa5 {[%clk 0:01:00]}  Qxb2 {[%clk 0:01:46]} 26. Rd1 {[%clk 0:01:01]}  e6 {[%clk 0:01:44]} 27. h4 {[%clk 0:01:00]}  Rc8 {[%clk 0:01:38]} 28. h5 {[%clk 0:00:58]}  Qe2 {[%clk 0:01:38]} 29. Rb1 {[%clk 0:00:52]}  Qxh5 {[%clk 0:01:38]} 30. Qa6 {[%clk 0:00:53]}  Rc2 {[%clk 0:01:24]} 31. a4 {[%clk 0:00:48]}  Qf5 {[%clk 0:01:13]} 32. Qa7 {[%clk 0:00:38]}  Kg7 {[%clk 0:01:05]} 33. Qd4+ {[%clk 0:00:30]}  e5 {[%clk 0:01:05]} 34. Qb6 {[%clk 0:00:15]}  d4 {[%clk 0:01:05]} 35. Rf1 {[%clk 0:00:16]}  d3 {[%clk 0:01:00]} 36. Qe3 {[%clk 0:00:17]}  Re2 {[%clk 0:00:58]} 37. Qc5 {[%clk 0:00:15]}  d2 {[%clk 0:00:58]} 38. Qd5 {[%clk 0:00:16]}  e4 {[%clk 0:00:50]} 39. Qd4+ {[%clk 0:00:15]}  Qf6 {[%clk 0:00:50]} 40. Qd5 {[%clk 0:00:08]}  Qc3 {[%clk 0:00:38]} 41. Kh2 {[%clk 0:00:05]}  Re1 {[%clk 0:00:38]} 42. Rg1 {[%clk 0:00:02]}  Rxg1 {[%clk 0:00:37]} 43. Kxg1 {[%clk 0:00:03]}  Qa1+ {[%clk 0:00:38]} 44. Kh2 {[%clk 0:00:03]}  d1=Q {[%clk 0:00:38]} 0-1


[Site "https://www.chess.com"]

[Event "Titled Tuesday Blitz March 29 Late 2022"]
[White "Yuan, Qingyu"]
[Black "Lin, Dachey"]
[WhiteFideId "8609772"]
[BlackFideId "2029650"]
[WhiteElo "2359"]
[BlackElo "2313"]
[Result "1-0"]
[Round "08"]
[TimeControl "180+1"]
[Date "2022.03.29"]
[WhiteClock "0:00:16"]
[BlackClock "0:00:14"]

1. e4 {[%clk 0:03:00]}  g6 {[%clk 0:03:00]} 2. d4 {[%clk 0:03:00]}  Bg7 {[%clk 0:03:01]} 3. Nf3 {[%clk 0:03:00]}  c6 {[%clk 0:03:02]} 4. h3 {[%clk 0:02:52]}  d5 {[%clk 0:03:02]} 5. e5 {[%clk 0:02:53]}  Bf5 {[%clk 0:03:00]} 6. Be2 {[%clk 0:02:47]}  e6 {[%clk 0:02:56]} 7. O-O {[%clk 0:02:42]}  h5 {[%clk 0:02:57]} 8. c3 {[%clk 0:02:31]}  Nd7 {[%clk 0:02:56]} 9. Bg5 {[%clk 0:02:31]}  Ne7 {[%clk 0:02:56]} 10. Nbd2 {[%clk 0:02:30]}  O-O {[%clk 0:02:55]} 11. Re1 {[%clk 0:02:30]}  c5 {[%clk 0:02:55]} 12. Nf1 {[%clk 0:02:21]}  Re8 {[%clk 0:02:53]} 13. Qb3 {[%clk 0:02:10]}  Qc7 {[%clk 0:02:49]} 14. Ne3 {[%clk 0:02:05]}  Be4 {[%clk 0:02:39]} 15. Nd2 {[%clk 0:02:01]}  cxd4 {[%clk 0:02:37]} 16. cxd4 {[%clk 0:01:58]}  Nc6 {[%clk 0:02:37]} 17. Rac1 {[%clk 0:01:48]}  Qb6 {[%clk 0:01:12]} 18. Qxb6 {[%clk 0:01:00]}  axb6 {[%clk 0:01:13]} 19. f3 {[%clk 0:01:00]}  Bf5 {[%clk 0:01:09]} 20. g4 {[%clk 0:01:00]}  Nxd4 {[%clk 0:01:05]} 21. gxf5 {[%clk 0:00:58]}  Nxe5 {[%clk 0:00:21]} 22. f6 {[%clk 0:00:50]}  Bf8 {[%clk 0:00:20]} 23. a3 {[%clk 0:00:46]}  Bc5 {[%clk 0:00:20]} 24. Kg2 {[%clk 0:00:42]}  Rec8 {[%clk 0:00:15]} 25. Bf1 {[%clk 0:00:34]}  Nec6 {[%clk 0:00:15]} 26. Nb1 {[%clk 0:00:27]}  b5 {[%clk 0:00:15]} 27. Nc3 {[%clk 0:00:24]}  b4 {[%clk 0:00:14]} 28. Ncxd5 {[%clk 0:00:22]}  exd5 {[%clk 0:00:12]} 29. Rxc5 {[%clk 0:00:22]}  bxa3 {[%clk 0:00:13]} 30. bxa3 {[%clk 0:00:22]}  Rxa3 {[%clk 0:00:14]} 31. Nxd5 {[%clk 0:00:21]}  Ne6 {[%clk 0:00:13]} 32. Rxe6 {[%clk 0:00:15]}  fxe6 {[%clk 0:00:14]} 33. Ne7+ {[%clk 0:00:12]}  Nxe7 {[%clk 0:00:14]} 34. fxe7 {[%clk 0:00:12]}  Re8 {[%clk 0:00:12]} 35. Bb5 {[%clk 0:00:12]}  Raa8 {[%clk 0:00:09]} 36. Bxe8 {[%clk 0:00:11]}  Rxe8 {[%clk 0:00:10]} 37. h4 {[%clk 0:00:11]}  Kf7 {[%clk 0:00:11]} 38. Rb5 {[%clk 0:00:12]}  Rb8 {[%clk 0:00:11]} 39. Kg3 {[%clk 0:00:12]}  b6 {[%clk 0:00:11]} 40. Kf4 {[%clk 0:00:12]}  Rb7 {[%clk 0:00:11]} 41. Ke5 {[%clk 0:00:13]}  Rb8 {[%clk 0:00:12]} 42. f4 {[%clk 0:00:13]}  Rb7 {[%clk 0:00:12]} 43. Kd6 {[%clk 0:00:14]}  Rb8 {[%clk 0:00:12]} 44. Kd7 {[%clk 0:00:14]}  Rb7+ {[%clk 0:00:13]} 45. Kd8 {[%clk 0:00:14]}  Rb8+ {[%clk 0:00:13]} 46. Kc7 {[%clk 0:00:15]}  Ra8 {[%clk 0:00:14]} 47. Rxb6 {[%clk 0:00:15]}  Ra5 {[%clk 0:00:13]} 48. Rb8 {[%clk 0:00:15]}  Rc5+ {[%clk 0:00:14]} 49. Kd6 {[%clk 0:00:15]}  Rd5+ {[%clk 0:00:14]} 50. Kc6 {[%clk 0:00:16]}  Kg7 {[%clk 0:00:14]} 51. e8=Q {[%clk 0:00:16]} 1-0


[Site "https://www.chess.com"]

[Event "Titled Tuesday Blitz March 29 Late 2022"]
[White "Almedina Ortiz, Edgardo J."]
[Black "Pourkashiyan, Atousa"]
[WhiteFideId "3100197"]
[BlackFideId "12502014"]
[WhiteElo "2217"]
[BlackElo "2247"]
[Result "0-1"]
[Round "09"]
[TimeControl "180+1"]
[Date "2022.03.30"]
[WhiteClock "0:00:01"]
[BlackClock "0:00:02"]

1. d4 {[%clk 0:03:00]}  d5 {[%clk 0:03:00]} 2. c4 {[%clk 0:03:00]}  e6 {[%clk 0:03:00]} 3. Nf3 {[%clk 0:03:00]}  Nf6 {[%clk 0:03:00]} 4. g3 {[%clk 0:03:00]}  dxc4 {[%clk 0:03:01]} 5. Bg2 {[%clk 0:02:59]}  Nc6 {[%clk 0:03:01]} 6. O-O {[%clk 0:02:57]}  a6 {[%clk 0:03:01]} 7. e3 {[%clk 0:02:49]}  Rb8 {[%clk 0:02:59]} 8. Nfd2 {[%clk 0:02:48]}  Bd6 {[%clk 0:02:33]} 9. Nxc4 {[%clk 0:02:45]}  O-O {[%clk 0:02:33]} 10. Nc3 {[%clk 0:02:34]}  Bd7 {[%clk 0:02:30]} 11. e4 {[%clk 0:02:22]}  e5 {[%clk 0:02:22]} 12. Nxd6 {[%clk 0:01:52]}  cxd6 {[%clk 0:02:13]} 13. d5 {[%clk 0:01:40]}  Nd4 {[%clk 0:02:06]} 14. Be3 {[%clk 0:01:40]}  Nb5 {[%clk 0:02:00]} 15. Nxb5 {[%clk 0:01:26]}  Bxb5 {[%clk 0:01:55]} 16. Re1 {[%clk 0:01:26]}  Rc8 {[%clk 0:01:55]} 17. a4 {[%clk 0:01:22]}  Bd7 {[%clk 0:01:45]} 18. Qb3 {[%clk 0:01:21]}  b5 {[%clk 0:01:44]} 19. a5 {[%clk 0:01:03]}  Ng4 {[%clk 0:01:37]} 20. Bb6 {[%clk 0:01:03]}  Qe7 {[%clk 0:01:17]} 21. h3 {[%clk 0:00:58]}  Nh6 {[%clk 0:01:08]} 22. g4 {[%clk 0:00:41]}  f6 {[%clk 0:00:58]} 23. Rac1 {[%clk 0:00:40]}  Nf7 {[%clk 0:00:57]} 24. Qe3 {[%clk 0:00:32]}  Nh8 {[%clk 0:00:56]} 25. Rxc8 {[%clk 0:00:32]}  Rxc8 {[%clk 0:00:56]} 26. Rc1 {[%clk 0:00:32]}  Qe8 {[%clk 0:00:55]} 27. Rc3 {[%clk 0:00:29]}  Ng6 {[%clk 0:00:55]} 28. Qc1 {[%clk 0:00:28]}  Nf4 {[%clk 0:00:55]} 29. Bf1 {[%clk 0:00:25]}  h5 {[%clk 0:00:45]} 30. Rxc8 {[%clk 0:00:23]}  Bxc8 {[%clk 0:00:44]} 31. f3 {[%clk 0:00:22]}  hxg4 {[%clk 0:00:43]} 32. hxg4 {[%clk 0:00:22]}  Bxg4 {[%clk 0:00:35]} 33. fxg4 {[%clk 0:00:21]}  Qg6 {[%clk 0:00:36]} 34. Qc8+ {[%clk 0:00:19]}  Kf7 {[%clk 0:00:29]} 35. Qd7+ {[%clk 0:00:17]}  Kg8 {[%clk 0:00:28]} 36. Qc8+ {[%clk 0:00:13]}  Kf7 {[%clk 0:00:28]} 37. Qf5 {[%clk 0:00:13]}  Qh6 {[%clk 0:00:26]} 38. Bf2 {[%clk 0:00:10]}  Ng6 {[%clk 0:00:13]} 39. Bg3 {[%clk 0:00:09]}  Qe3+ {[%clk 0:00:12]} 40. Kg2 {[%clk 0:00:07]}  Nf4+ {[%clk 0:00:09]} 41. Bxf4 {[%clk 0:00:06]}  exf4 {[%clk 0:00:10]} 42. Qe6+ {[%clk 0:00:05]}  Kg6 {[%clk 0:00:10]} 43. Qe8+ {[%clk 0:00:03]}  Kh7 {[%clk 0:00:08]} 44. Qh5+ {[%clk 0:00:03]}  Kg8 {[%clk 0:00:09]} 45. Qe8+ {[%clk 0:00:03]}  Kh7 {[%clk 0:00:09]} 46. Qe6 {[%clk 0:00:02]}  f3+ {[%clk 0:00:02]} 47. Kg3 {[%clk 0:00:01]}  Qe1+ {[%clk 0:00:02]} 0-1


[Site "https://www.chess.com"]

[Event "Titled Tuesday Blitz March 29 Late 2022"]
[White "Arabidze, Meri"]
[Black "Aravindh, Chithambaram VR."]
[WhiteFideId "13604040"]
[BlackFideId "5072786"]
[WhiteElo "2335"]
[BlackElo "2561"]
[Result "1/2-1/2"]
[Round "09"]
[TimeControl "180+1"]
[Date "2022.03.29"]
[WhiteClock "0:00:03"]
[BlackClock "0:00:03"]

1. Nf3 {[%clk 0:03:00]}  b6 {[%clk 0:02:57]} 2. g3 {[%clk 0:02:56]}  Bb7 {[%clk 0:02:58]} 3. Bg2 {[%clk 0:02:57]}  g5 {[%clk 0:02:56]} 4. O-O {[%clk 0:02:51]}  g4 {[%clk 0:02:56]} 5. Nh4 {[%clk 0:02:51]}  Bxg2 {[%clk 0:02:57]} 6. Nxg2 {[%clk 0:02:51]}  h5 {[%clk 0:02:56]} 7. e4 {[%clk 0:02:51]}  e6 {[%clk 0:02:53]} 8. d4 {[%clk 0:02:51]}  Be7 {[%clk 0:02:48]} 9. c3 {[%clk 0:02:48]}  Nf6 {[%clk 0:02:43]} 10. f3 {[%clk 0:02:46]}  d6 {[%clk 0:02:32]} 11. Bg5 {[%clk 0:02:43]}  Nbd7 {[%clk 0:02:30]} 12. Nd2 {[%clk 0:02:39]}  Rg8 {[%clk 0:02:17]} 13. Bh4 {[%clk 0:02:36]}  Qc8 {[%clk 0:01:54]} 14. Qe2 {[%clk 0:02:34]}  Qb7 {[%clk 0:01:53]} 15. Rf2 {[%clk 0:02:22]}  gxf3 {[%clk 0:01:51]} 16. Rxf3 {[%clk 0:02:21]}  Ng4 {[%clk 0:01:45]} 17. Bxe7 {[%clk 0:02:18]}  Kxe7 {[%clk 0:01:46]} 18. Raf1 {[%clk 0:02:18]}  Raf8 {[%clk 0:01:46]} 19. Nh4 {[%clk 0:02:09]}  b5 {[%clk 0:01:33]} 20. Nb3 {[%clk 0:01:54]}  Ngf6 {[%clk 0:01:16]} 21. Nd2 {[%clk 0:01:39]}  Rg4 {[%clk 0:01:14]} 22. Rf4 {[%clk 0:01:37]}  Rxf4 {[%clk 0:01:07]} 23. Rxf4 {[%clk 0:01:38]}  c5 {[%clk 0:01:07]} 24. e5 {[%clk 0:01:33]}  dxe5 {[%clk 0:01:05]} 25. dxe5 {[%clk 0:01:34]}  Nd5 {[%clk 0:01:01]} 26. Rf2 {[%clk 0:01:33]}  Qc7 {[%clk 0:00:55]} 27. Qxh5 {[%clk 0:01:12]}  Nxe5 {[%clk 0:00:54]} 28. Ne4 {[%clk 0:01:07]}  c4 {[%clk 0:00:44]} 29. Qg5+ {[%clk 0:01:05]}  f6 {[%clk 0:00:41]} 30. Qg7+ {[%clk 0:01:00]}  Rf7 {[%clk 0:00:41]} 31. Qg8 {[%clk 0:01:00]}  Qd8 {[%clk 0:00:32]} 32. Ng6+ {[%clk 0:00:33]}  Nxg6 {[%clk 0:00:32]} 33. Qxg6 {[%clk 0:00:34]}  Ne3 {[%clk 0:00:15]} 34. Rd2 {[%clk 0:00:33]}  Nd5 {[%clk 0:00:13]} 35. h4 {[%clk 0:00:24]}  Qb6+ {[%clk 0:00:13]} 36. Kh2 {[%clk 0:00:23]}  Qe3 {[%clk 0:00:08]} 37. Rg2 {[%clk 0:00:22]}  f5 {[%clk 0:00:05]} 38. Ng5 {[%clk 0:00:22]}  Rf6 {[%clk 0:00:05]} 39. Qg7+ {[%clk 0:00:22]}  Kd6 {[%clk 0:00:06]} 40. Nh7 {[%clk 0:00:15]}  Qe5 {[%clk 0:00:03]} 41. Nxf6 {[%clk 0:00:14]}  Nxf6 {[%clk 0:00:04]} 42. Qxa7 {[%clk 0:00:09]}  Ng4+ {[%clk 0:00:04]} 43. Kh3 {[%clk 0:00:09]}  Qe1 {[%clk 0:00:03]} 44. Qb8+ {[%clk 0:00:09]}  Ke7 {[%clk 0:00:03]} 45. Qa7+ {[%clk 0:00:07]}  Kf6 {[%clk 0:00:03]} 46. Qd4+ {[%clk 0:00:06]}  Kf7 {[%clk 0:00:03]} 47. Qd7+ {[%clk 0:00:04]}  Kf6 {[%clk 0:00:03]} 48. Qd4+ {[%clk 0:00:04]}  Kf7 {[%clk 0:00:03]} 49. Qd7+ {[%clk 0:00:03]}  Kf6 {[%clk 0:00:03]} 50. Qd4+ {[%clk 0:00:03]} 1/2-1/2


[Site "https://www.chess.com"]

[Event "Titled Tuesday Blitz March 29 Late 2022"]
[White "Barria Zuniga, Daniel"]
[Black "Milanovic, Marko"]
[WhiteFideId "3400816"]
[BlackFideId "980129"]
[WhiteElo "2414"]
[BlackElo "2159"]
[Result "1-0"]
[Round "09"]
[TimeControl "180+1"]
[Date "2022.03.30"]
[WhiteClock "0:02:34"]
[BlackClock "0:02:12"]

1. d4 {[%clk 0:02:58]}  d5 {[%clk 0:03:00]} 2. c4 {[%clk 0:02:57]}  c6 {[%clk 0:02:59]} 3. Nf3 {[%clk 0:02:57]}  Nf6 {[%clk 0:02:59]} 4. Nc3 {[%clk 0:02:57]}  e6 {[%clk 0:03:00]} 5. Bg5 {[%clk 0:02:57]}  dxc4 {[%clk 0:03:00]} 6. e4 {[%clk 0:02:56]}  b5 {[%clk 0:03:01]} 7. a4 {[%clk 0:02:55]}  Bb4 {[%clk 0:03:00]} 8. e5 {[%clk 0:02:55]}  h6 {[%clk 0:02:59]} 9. exf6 {[%clk 0:02:54]}  hxg5 {[%clk 0:02:59]} 10. fxg7 {[%clk 0:02:55]}  Rg8 {[%clk 0:03:00]} 11. g3 {[%clk 0:02:55]}  Bb7 {[%clk 0:02:57]} 12. Bg2 {[%clk 0:02:56]}  Nd7 {[%clk 0:02:57]} 13. O-O {[%clk 0:02:56]}  Bxc3 {[%clk 0:02:50]} 14. bxc3 {[%clk 0:02:55]}  Rxg7 {[%clk 0:02:51]} 15. Ne5 {[%clk 0:02:55]}  Nxe5 {[%clk 0:02:49]} 16. dxe5 {[%clk 0:02:56]}  Qxd1 {[%clk 0:02:49]} 17. Rfxd1 {[%clk 0:02:56]}  a6 {[%clk 0:02:29]} 18. axb5 {[%clk 0:02:52]}  axb5 {[%clk 0:02:27]} 19. Rxa8+ {[%clk 0:02:52]}  Bxa8 {[%clk 0:02:28]} 20. Ra1 {[%clk 0:02:52]}  Bb7 {[%clk 0:02:24]} 21. Ra7 {[%clk 0:02:52]}  Bc8 {[%clk 0:02:25]} 22. Bxc6+ {[%clk 0:02:52]}  Kd8 {[%clk 0:02:25]} 23. f3 {[%clk 0:02:37]}  g4 {[%clk 0:02:21]} 24. f4 {[%clk 0:02:34]}  Rg8 {[%clk 0:02:12]} 1-0


[Site "https://www.chess.com"]

[Event "Titled Tuesday Blitz March 29 Late 2022"]
[White "Bogumil, Tatiana"]
[Black "Desideri, Ricardo Maruchi"]
[WhiteFideId "4110579"]
[BlackFideId "2110440"]
[WhiteElo "1761"]
[BlackElo "1945"]
[Result "1-0"]
[Round "09"]
[TimeControl "180+1"]
[Date "2022.03.30"]
[WhiteClock "0:00:14"]
[BlackClock "0:00:01"]

1. Nf3 {[%clk 0:03:00]}  c5 {[%clk 0:02:45]} 2. c4 {[%clk 0:02:57]}  e6 {[%clk 0:02:42]} 3. b3 {[%clk 0:02:56]}  b6 {[%clk 0:02:39]} 4. g3 {[%clk 0:02:54]}  Bb7 {[%clk 0:02:37]} 5. Bg2 {[%clk 0:02:55]}  Nf6 {[%clk 0:02:36]} 6. Bb2 {[%clk 0:02:54]}  Be7 {[%clk 0:02:36]} 7. O-O {[%clk 0:02:50]}  O-O {[%clk 0:02:34]} 8. d4 {[%clk 0:02:50]}  cxd4 {[%clk 0:02:31]} 9. Qxd4 {[%clk 0:02:50]}  Qc7 {[%clk 0:02:28]} 10. Nc3 {[%clk 0:02:49]}  a6 {[%clk 0:02:25]} 11. Rac1 {[%clk 0:02:43]}  d6 {[%clk 0:02:12]} 12. Rfd1 {[%clk 0:02:42]}  Nbd7 {[%clk 0:02:09]} 13. h3 {[%clk 0:02:40]}  Rac8 {[%clk 0:02:07]} 14. g4 {[%clk 0:02:34]}  h6 {[%clk 0:01:42]} 15. e4 {[%clk 0:02:24]}  Qb8 {[%clk 0:01:32]} 16. Qe3 {[%clk 0:02:23]}  Qa8 {[%clk 0:01:28]} 17. Nd4 {[%clk 0:02:23]}  Nh7 {[%clk 0:01:09]} 18. Nce2 {[%clk 0:02:20]}  Nc5 {[%clk 0:01:06]} 19. Ng3 {[%clk 0:02:19]}  Ng5 {[%clk 0:01:02]} 20. f3 {[%clk 0:02:16]}  Qb8 {[%clk 0:00:58]} 21. Nge2 {[%clk 0:02:00]}  Bf6 {[%clk 0:00:41]} 22. Nc3 {[%clk 0:01:54]}  d5 {[%clk 0:00:23]} 23. cxd5 {[%clk 0:01:49]}  Qg3 {[%clk 0:00:24]} 24. Nce2 {[%clk 0:01:32]}  Nxh3+ {[%clk 0:00:20]} 25. Kf1 {[%clk 0:01:32]}  Qh2 {[%clk 0:00:19]} 26. Bxh3 {[%clk 0:01:23]}  Qxh3+ {[%clk 0:00:18]} 27. Kg1 {[%clk 0:01:19]}  exd5 {[%clk 0:00:18]} 28. e5 {[%clk 0:00:41]}  Bg5 {[%clk 0:00:18]} 29. Nf4 {[%clk 0:00:41]}  Qg3+ {[%clk 0:00:17]} 30. Kf1 {[%clk 0:00:38]}  Bxf4 {[%clk 0:00:17]} 31. Qf2 {[%clk 0:00:34]}  Qh3+ {[%clk 0:00:16]} 32. Qg2 {[%clk 0:00:30]}  Qxg2+ {[%clk 0:00:14]} 33. Kxg2 {[%clk 0:00:30]}  Bxc1 {[%clk 0:00:15]} 34. Bxc1 {[%clk 0:00:31]}  Nd3 {[%clk 0:00:13]} 35. Be3 {[%clk 0:00:30]}  Nb2 {[%clk 0:00:11]} 36. Rd2 {[%clk 0:00:30]}  Rc3 {[%clk 0:00:05]} 37. Nf5 {[%clk 0:00:20]}  Nd3 {[%clk 0:00:04]} 38. Bd4 {[%clk 0:00:20]}  Ne1+ {[%clk 0:00:02]} 39. Kf2 {[%clk 0:00:18]}  Rd3 {[%clk 0:00:02]} 40. Kxe1 {[%clk 0:00:18]}  Rxd2 {[%clk 0:00:02]} 41. Kxd2 {[%clk 0:00:18]}  Re8 {[%clk 0:00:01]} 42. Nd6 {[%clk 0:00:18]}  Re7 {[%clk 0:00:01]} 43. f4 {[%clk 0:00:18]}  g6 {[%clk 0:00:01]} 44. f5 {[%clk 0:00:18]}  h5 {[%clk 0:00:01]} 45. gxh5 {[%clk 0:00:14]} 1-0


[Site "https://www.chess.com"]

[Event "Titled Tuesday Blitz March 29 Late 2022"]
[White "Bortnyk, Olexandr"]
[Black "Kamsky, Gata"]
[WhiteFideId "14120828"]
[BlackFideId "2000024"]
[WhiteElo "2723"]
[BlackElo "2645"]
[Result "1-0"]
[Round "09"]
[TimeControl "180+1"]
[Date "2022.03.29"]
[WhiteClock "0:00:02"]
[BlackClock "0:00:03"]

1. d4 {[%clk 0:03:00]}  d5 {[%clk 0:02:53]} 2. Nc3 {[%clk 0:03:01]}  Nf6 {[%clk 0:02:51]} 3. Bf4 {[%clk 0:03:01]}  Bf5 {[%clk 0:02:49]} 4. f3 {[%clk 0:03:01]}  e6 {[%clk 0:02:48]} 5. g4 {[%clk 0:03:02]}  Bg6 {[%clk 0:02:48]} 6. h4 {[%clk 0:03:02]}  h6 {[%clk 0:02:48]} 7. e3 {[%clk 0:03:02]}  a6 {[%clk 0:02:45]} 8. Bd3 {[%clk 0:03:01]}  Bxd3 {[%clk 0:02:44]} 9. Qxd3 {[%clk 0:03:02]}  c5 {[%clk 0:02:41]} 10. Nge2 {[%clk 0:03:00]}  Nc6 {[%clk 0:02:40]} 11. a3 {[%clk 0:02:49]}  Bd6 {[%clk 0:02:37]} 12. dxc5 {[%clk 0:02:48]}  Bxc5 {[%clk 0:02:37]} 13. O-O-O {[%clk 0:02:48]}  Nd7 {[%clk 0:02:11]} 14. Nd4 {[%clk 0:02:00]}  Nce5 {[%clk 0:02:01]} 15. Qe2 {[%clk 0:01:37]}  Qe7 {[%clk 0:01:55]} 16. Nxd5 {[%clk 0:01:20]}  exd5 {[%clk 0:01:53]} 17. Nf5 {[%clk 0:01:21]}  Qf6 {[%clk 0:01:43]} 18. Rxd5 {[%clk 0:01:20]}  Rc8 {[%clk 0:01:40]} 19. e4 {[%clk 0:01:10]}  g6 {[%clk 0:01:31]} 20. g5 {[%clk 0:01:06]}  hxg5 {[%clk 0:01:30]} 21. Bxg5 {[%clk 0:01:05]}  Qc6 {[%clk 0:01:11]} 22. Rhd1 {[%clk 0:00:31]}  f6 {[%clk 0:00:47]} 23. f4 {[%clk 0:00:18]}  fxg5 {[%clk 0:00:40]} 24. fxe5 {[%clk 0:00:17]}  gxf5 {[%clk 0:00:39]} 25. exf5 {[%clk 0:00:13]}  Nb6 {[%clk 0:00:36]} 26. Rd6 {[%clk 0:00:11]}  Qb5 {[%clk 0:00:28]} 27. Re6+ {[%clk 0:00:10]}  Kf7 {[%clk 0:00:28]} 28. Rf6+ {[%clk 0:00:07]}  Ke7 {[%clk 0:00:28]} 29. Qg2 {[%clk 0:00:03]}  Nc4 {[%clk 0:00:23]} 30. Re6+ {[%clk 0:00:02]}  Kf8 {[%clk 0:00:22]} 31. Rf6+ {[%clk 0:00:03]}  Ke7 {[%clk 0:00:22]} 32. Re6+ {[%clk 0:00:04]}  Kf8 {[%clk 0:00:23]} 33. b3 {[%clk 0:00:02]}  Qa5 {[%clk 0:00:20]} 34. Rf6+ {[%clk 0:00:02]}  Ke7 {[%clk 0:00:19]} 35. Qxb7+ {[%clk 0:00:01]}  Rc7 {[%clk 0:00:18]} 36. Re6+ {[%clk 0:00:01]}  Kf7 {[%clk 0:00:18]} 37. Rf6+ {[%clk 0:00:02]}  Ke7 {[%clk 0:00:18]} 38. Re6+ {[%clk 0:00:02]}  Kf7 {[%clk 0:00:19]} 39. Rd7+ {[%clk 0:00:02]}  Kg8 {[%clk 0:00:04]} 40. Qb8+ {[%clk 0:00:02]}  Bf8 {[%clk 0:00:03]} 41. Rg6# {[%clk 0:00:02]} 1-0


[Site "https://www.chess.com"]